fUSD/lending_fUSD_20250113
["ID","MTS","AMOUNT","RATE_DAILY","PERIOD"]
[348714971,1736746233928,-500.0,9.999e-05,2]
[348714972,1736746233937,-500.0,9.999e-05,2]
[348714973,1736746233946,-506.40241836,9.999e-05,2]
[348714974,1736746233956,-500.0,9.999e-05,2]
[348714975,1736746233965,-807.32,9.999e-05,2]
[348714976,1736746233975,-500.0,9.999e-05,2]
[348714977,1736746233984,-500.0,9.999e-05,2]
[348714978,1736746233994,-505.33654036,9.999e-05,2]
[348714979,1736746234003,-500.0,9.999e-05,2]
[348714980,1736746234013,-500.0,9.999e-05,2]
[348714981,1736746234022,-500.0,9.999e-05,2]
[348714982,1736746234032,-505.98167575,9.999e-05,2]
[348714983,1736746234042,-500.0,9.999e-05,2]
[348714984,1736746234052,-500.0,9.999e-05,2]
[348714985,1736746234061,-603.25,9.999e-05,2]
[348714986,1736746234071,-500.0,9.999e-05,2]
[348714987,1736746234080,-513.78945983,9.999e-05,2]
[348714988,1736746234090,-500.0,9.999e-05,2]
[348714989,1736746234099,-506.16614091,9.999e-05,2]
[348714990,1736746234109,-500.0,9.999e-05,2]
[348714991,1736746234119,-500.0,9.999e-05,2]
[348714992,1736746234128,-255.211971,9.999e-05,2]
[348714993,1736746234138,-745.63,9.999e-05,2]
[348714994,1736746234147,-500.0,9.999e-05,2]
[348714995,1736746234157,-500.0,9.999e-05,2]
[348714996,1736746234167,-500.0,9.999e-05,2]
[348714997,1736746234176,-500.0,9.999e-05,2]
[348714998,1736746234187,-500.0,9.999e-05,2]
[348714999,1736746234197,-500.0,9.999e-05,2]
[348715000,1736746234207,-241.480263,9.999e-05,2]
[348715001,1736746234216,-500.0,9.999e-05,2]
[348715002,1736746234226,-500.0,9.999e-05,2]
[348715003,1736746234235,-500.0,9.999e-05,2]
[348715004,1736746234244,-769.55,9.999e-05,2]
[348715005,1736746234254,-833.88,9.999e-05,2]
[348715006,1736746234264,-500.0,9.999e-05,2]
[348715007,1736746234274,-500.0,9.999e-05,2]
[348715008,1736746234284,-500.0,9.999e-05,2]
[348715009,1736746234293,-604.07,9.999e-05,2]
[348715010,1736746234303,-627.39,9.999e-05,2]
[348715011,1736746234312,-1116.18,9.999e-05,2]
[348715012,1736746234322,-500.0,9.999e-05,2]
[348715013,1736746234331,-1449.61,9.999e-05,2]
[348715014,1736746234340,-500.0,9.999e-05,2]
[348715015,1736746234350,-3307.37,9.999e-05,2]
[348715016,1736746234359,-367.26729492,9.999e-05,2]
[348715017,1736746234369,-500.0,9.999e-05,2]
[348715018,1736746234379,-500.0,9.999e-05,2]
[348715019,1736746234389,-500.0,9.999e-05,2]
[348715020,1736746234398,-500.0,9.999e-05,2]
[348715021,1736746234409,-500.0,9.999e-05,2]
[348715022,1736746234420,-1095.33,9.999e-05,2]
[348715023,1736746234429,-500.0,9.999e-05,2]
[348715024,1736746234438,-500.0,9.999e-05,2]
[348715025,1736746234448,-2535.83,9.999e-05,2]
[348715026,1736746234457,-500.0,9.999e-05,2]
[348715027,1736746234467,-824.19,9.999e-05,2]
[348715028,1736746234476,-500.0,9.999e-05,2]
[348715029,1736746234486,-500.0,9.999e-05,2]
[348715030,1736746234496,-500.0,9.999e-05,2]
[348715031,1736746234505,-500.0,9.999e-05,2]
[348715032,1736746234519,-500.0,9.999e-05,2]
[348715033,1736746234528,-656.34,9.999e-05,2]
[348715034,1736746234537,-384.72384736,9.999e-05,2]
[348715035,1736746234546,-500.0,9.999e-05,2]
[348715036,1736746234557,-2033.91,9.999e-05,2]
[348715037,1736746234567,-500.0,9.999e-05,2]
[348715038,1736746234576,-500.0,9.999e-05,2]
[348715039,1736746234587,-579.26864889,9.999e-05,2]
[348715040,1736746234596,-500.0,9.999e-05,2]
[348715041,1736746234606,-1315.09,9.999e-05,2]
[348715042,1736746234615,-500.0,9.999e-05,2]
[348715043,1736746234624,-500.0,9.999e-05,2]
[348715044,1736746234633,-505.20740275,9.999e-05,2]
[348715045,1736746234649,-1069.00829095,9.999e-05,2]
[348715046,1736746234660,-481.8443063,9.999e-05,2]
[348715047,1736746234669,-270.92363356,9.999e-05,2]
[348715048,1736746234681,-229.07636644,9.999e-05,2]
[348715049,1736746234690,-611.31227481,9.999e-05,2]
[348715050,1736746234701,-517.80772519,9.999e-05,2]
[348715051,1736746234710,-500.0,9.999e-05,2]
[348715052,1736746234719,-556.29882742,9.999e-05,2]
[348715053,1736746234728,-36.89344738,9.999e-05,2]
[348715054,1736746234758,-463.10655262,9.999e-05,2]
[348715055,1736746234767,-3035.01,9.999e-05,2]
[348715056,1736746234777,-2156.17,9.999e-05,2]
[348715057,1736746234785,-500.0,9.999e-05,2]
[348715058,1736746234794,-235.19389099,9.999e-05,2]
[348715059,1736746237971,-264.80610901,9.999e-05,2]
[348715060,1736746237981,-1948.67,9.999e-05,2]
[348715061,1736746237991,-500.0,9.999e-05,2]
[348715062,1736746238000,-1907.18,9.999e-05,2]
[348715063,1736746238010,-507.40154507,9.999e-05,2]
[348715064,1736746238021,-500.0,9.999e-05,2]
[348715065,1736746238030,-505.89421977,9.999e-05,2]
[348715066,1736746238039,-1605.17,9.999e-05,2]
[348715067,1736746238049,-524.36,9.999e-05,2]
[348715068,1736746238058,-500.65974602,9.999e-05,2]
[348715069,1736746238068,-500.76082429,9.999e-05,2]
[348715070,1736746238077,-500.0,9.999e-05,2]
[348715071,1736746238086,-437.41630207,9.999e-05,2]
[348715072,1736746238096,-614.03,9.999e-05,2]
[348715073,1736746238105,-500.0,9.999e-05,2]
[348715074,1736746238115,-500.0,9.999e-05,2]
[348715075,1736746238124,-500.0,9.999e-05,2]
[348715076,1736746238133,-500.0,9.999e-05,2]
[348715077,1736746238142,-1961.92,9.999e-05,2]
[348715078,1736746238151,-1067.76,9.999e-05,2]
[348715079,1736746238160,-615.45,9.999e-05,2]
[348715080,1736746238169,-615.45,9.999e-05,2]
[348715081,1736746238179,-615.45,9.999e-05,2]
[348715082,1736746238187,-615.45,9.999e-05,2]
[348715083,1736746238197,-615.45,9.999e-05,2]
[348715084,1736746238206,-615.45,9.999e-05,2]
[348715085,1736746238215,-615.45,9.999e-05,2]
[348715086,1736746238224,-615.45,9.999e-05,2]
[348715087,1736746238234,-615.45,9.999e-05,2]
[348715088,1736746238243,-615.45,9.999e-05,2]
[348715089,1736746238252,-615.45,9.999e-05,2]
[348715090,1736746238261,-615.45,9.999e-05,2]
[348715091,1736746238270,-615.45,9.999e-05,2]
[348715092,1736746238279,-615.45,9.999e-05,2]
[348715093,1736746238289,-615.45,9.999e-05,2]
[348715094,1736746238298,-615.45,9.999e-05,2]
[348715095,1736746238307,-615.45,9.999e-05,2]
[348715096,1736746238316,-615.45,9.999e-05,2]
[348715097,1736746238326,-615.45,9.999e-05,2]
[348715098,1736746238335,-615.45,9.999e-05,2]
[348715099,1736746238344,-615.45,9.999e-05,2]
[348715100,1736746238353,-615.45,9.999e-05,2]
[348715101,1736746238362,-615.45,9.999e-05,2]
[348715102,1736746238372,-615.46488347,9.999e-05,2]
[348715103,1736746238381,-525.56,9.999e-05,2]
[348715104,1736746238390,-204.45617168,9.999e-05,2]
[348715105,1736746238399,-500.0,9.999e-05,2]
[348715106,1736746238408,-623.46,9.999e-05,2]
[348715107,1736746238417,-1100.99,9.999e-05,2]
[348715108,1736746238426,-1100.99,9.999e-05,2]
[348715109,1736746238435,-1100.99,9.999e-05,2]
[348715110,1736746238444,-500.0,9.999e-05,2]
[348715111,1736746238453,-1100.99,9.999e-05,2]
[348715112,1736746238462,-1390.67,9.999e-05,2]
[348715113,1736746238471,-819.89999978,9.999e-05,2]
[348715120,1736746239931,-281.09000022,9.999e-05,2]
[348715121,1736746239941,-1100.99,9.999e-05,2]
[348715122,1736746239950,-1100.99,9.999e-05,2]
[348715123,1736746239959,-500.0,9.999e-05,2]
[348715124,1736746239968,-1100.99,9.999e-05,2]
[348715125,1736746239977,-500.0,9.999e-05,2]
[348715126,1736746239987,-1100.99,9.999e-05,2]
[348715127,1736746239996,-500.0,9.999e-05,2]
[348715128,1736746240005,-166.77275747,9.999e-05,2]
[348715129,1736746240017,-311.184893,9.999e-05,2]
[348715130,1736746240042,-623.03234953,9.999e-05,2]
[348715131,1736746240051,-370.31751562,9.999e-05,2]
[348715132,1736746240089,-730.67248438,9.999e-05,2]
[348715133,1736746240099,-865.96,9.999e-05,2]
[348715134,1736746240108,-1100.99,9.999e-05,2]
[348715135,1736746240117,-1100.99,9.999e-05,2]
[348715136,1736746240127,-1100.99,9.999e-05,2]
[348715137,1736746240137,-1100.99,9.999e-05,2]
[348715138,1736746240146,-1172.93,9.999e-05,2]
[348715139,1736746240155,-500.0,9.999e-05,2]
[348715140,1736746240165,-1771.86,9.999e-05,2]
[348715141,1736746240174,-1100.99,9.999e-05,2]
[348715142,1736746240183,-1100.99,9.999e-05,2]
[348715143,1736746240192,-1100.99,9.999e-05,2]
[348715144,1736746240202,-1100.99,9.999e-05,2]
[348715145,1736746240211,-1100.99,9.999e-05,2]
[348715146,1736746240220,-742.05,9.999e-05,2]
[348715147,1736746240229,-1100.99,9.999e-05,2]
[348715148,1736746240238,-1100.99,9.999e-05,2]
[348715149,1736746240247,-1101.01064817,9.999e-05,2]
[348715150,1736746240256,-500.0,9.999e-05,2]
[348715151,1736746240265,-651.02,9.999e-05,2]
[348715152,1736746240278,-510.7947899,9.999e-05,2]
[348715153,1736746240287,-820.27,9.999e-05,2]
[348715154,1736746240295,-500.0,9.999e-05,2]
[348715155,1736746240304,-933.54,9.999e-05,2]
[348715156,1736746240314,-500.0,9.999e-05,2]
[348715157,1736746240323,-500.0,9.999e-05,2]
[348715158,1736746240332,-501.67,9.999e-05,2]
[348715159,1736746240340,-500.0,9.999e-05,2]
[348715160,1736746240350,-171.31737795,9.999e-05,2]
[348715161,1736746240358,-500.0,9.999e-05,2]
[348715162,1736746240367,-165.65258606,9.999e-05,2]
[348715163,1736746240376,-515.02626342,9.999e-05,2]
[348715164,1736746240385,-500.0,9.999e-05,2]
[348715165,1736746240394,-500.0,9.999e-05,2]
[348715166,1736746240403,-1563.65,9.999e-05,2]
[348715167,1736746240412,-701.54,9.999e-05,2]
[348715168,1736746240421,-500.0,9.999e-05,2]
[348715169,1736746240430,-558.6,9.999e-05,2]
[348715170,1736746240439,-271.92584878,9.999e-05,2]
[348715171,1736746240448,-508.20119983,9.999e-05,2]
[348715172,1736746240457,-500.0,9.999e-05,2]
[348715173,1736746240467,-816.34,9.999e-05,2]
[348715174,1736746240476,-500.0,9.999e-05,2]
[348715175,1736746240488,-502.82609516,9.999e-05,2]
[348715176,1736746240499,-1135.43,9.999e-05,2]
[348715177,1736746240509,-562.63,9.999e-05,2]
[348715178,1736746240522,-505.00205852,9.999e-05,2]
[348715179,1736746240531,-500.0,9.999e-05,2]
[348715180,1736746240541,-509.18290027,9.999e-05,2]
[348715181,1736746240551,-500.0,9.999e-05,2]
[348715182,1736746240561,-500.0,9.999e-05,2]
[348715183,1736746240571,-678.45,9.999e-05,2]
[348715184,1736746240582,-500.0,9.999e-05,2]
[348715185,1736746240592,-507.51,9.999e-05,2]
[348715186,1736746240602,-500.0,9.999e-05,2]
[348715187,1736746240611,-543.84,9.999e-05,2]
[348715188,1736746240620,-700.94,9.999e-05,2]
[348715189,1736746240630,-500.0,9.999e-05,2]
[348715190,1736746240639,-688.58,9.999e-05,2]
[348715191,1736746240648,-834.86,9.999e-05,2]
[348715192,1736746240658,-1329.79,9.999e-05,2]
[348715193,1736746240667,-506.22620751,9.999e-05,2]
[348715194,1736746240676,-503.00195776,9.999e-05,2]
[348715195,1736746240686,-506.41142844,9.999e-05,2]
[348715196,1736746240695,-500.0,9.999e-05,2]
[348715197,1736746240704,-509.31430515,9.999e-05,2]
[348715198,1736746240714,-500.0,9.999e-05,2]
[348715199,1736746240723,-500.0,9.999e-05,2]
[348715200,1736746240732,-505.77647964,9.999e-05,2]
[348715201,1736746240741,-500.0,9.999e-05,2]
[348715202,1736746240750,-500.0,9.999e-05,2]
[348715203,1736746240759,-500.0,9.999e-05,2]
[348715204,1736746240768,-506.77923951,9.999e-05,2]
[348715205,1736746240779,-5085880.4560282,0.0001,2]
[348715206,1736746240789,-171.8011697,0.0001,2]
[348715207,1736746240798,-216681.49891243,0.0001,2]
[348715208,1736746240807,-2197.80709773,0.0001,2]
[348715209,1736746240816,-200.0,0.0001,2]
[348715210,1736746240826,-200.0,0.0001,3]
[348715211,1736746240835,-300.45,0.0001,2]
[348715212,1736746240844,-200.0,0.0001,3]
[348715213,1736746240853,-200.0,0.0001,2]
[348715214,1736746240863,-200.0,0.0001,2]
[348715215,1736746240872,-165.0,0.0001,3]
[348715216,1736746240881,-155.0,0.0001,2]
[348715217,1736746240890,-10823941.50930149,0.0001,2]
[348715218,1736746240903,-9256.25831246,0.0001,2]
[348715219,1736746241085,-1000.0,9.996e-05,2]
[348715220,1736746241094,-500.0,9.999e-05,2]
[348715221,1736746241104,-232915.58929628,0.0001,2]
[348715222,1736746241115,-372.80077324,0.0001,2]
[348715223,1736746241133,-307.71169007,0.0001,2]
[348715224,1736746241144,-31399.68402912,0.0001,2]
[348715225,1736746241155,-1095.6062822,0.0001,2]
[348715226,1736746241165,-3999.64712997,0.0001,2]
[348715227,1736746241192,-323.81000002,0.0001,2]
[348715228,1736746241293,-3591.86537889,0.0001,2]
[348715229,1736746241304,-1469.6911387,0.0001,2]
[348715231,1736746243108,-324.42195751,9.999e-05,2]
[348715233,1736746243163,-193.3055178,9.999e-05,2]
[348715234,1736746243173,-632.37,9.999e-05,2]
[348715235,1736746243183,-500.0,9.999e-05,2]
[348715236,1736746243195,-500.0,9.999e-05,2]
[348715237,1736746243206,-21265.84558248,0.0001,2]
[348715238,1736746243276,-315968.29863253,0.0001,2]
[348715239,1736746243290,-1921.04771602,0.0001,2]
[348715240,1736746243393,-506.83679549,9.999e-05,2]
[348715241,1736746243405,-15761.23613974,0.0001,2]
[348715249,1736746246105,-518.74707679,9.999e-05,2]
[348715250,1736746246117,-500.0,9.999e-05,2]
[348715251,1736746246128,-215.189994,9.999e-05,2]
[348715252,1736746246140,-1445.57,9.999e-05,2]
[348715253,1736746246151,-503.28862049,9.999e-05,2]
[348715254,1736746246161,-500.5776573,9.999e-05,2]
[348715255,1736746246172,-125977.62664595,0.0001,2]
[348715256,1736746246220,-356.20926424,0.0001,2]
[348715257,1736746246344,-301.92071847,0.0001,2]
[348715258,1736746246389,-378.78294716,0.0001,2]
[348715259,1736746246402,-813.5,0.0001,2]
[348715260,1736746246415,-937.69234994,0.0001,2]
[348715263,1736746274943,798.94,8.219e-05,2]
[348715265,1736746815419,1094.0,0.0001,6]
[348715266,1736747159890,799.98,8.219e-05,2]
[348715267,1736747196609,-250.0,9.108e-05,2]
[348715268,1736747196633,-725.61,9.184e-05,2]
[348715269,1736747196655,-1000.0,9.233e-05,2]
[348715270,1736747196678,-5493.17,9.286e-05,2]
[348715271,1736747196701,-1532.4,9.341e-05,2]
[348715272,1736747196722,-824.52,9.483e-05,2]
[348715273,1736747196744,-262.54,9.484e-05,2]
[348715274,1736747196766,-151.791,9.5e-05,2]
[348715275,1736747196788,-150.0,9.534e-05,2]
[348715276,1736747196810,-250.0,9.566e-05,2]
[348715277,1736747196835,-168.01,9.66e-05,2]
[348715278,1736747196855,-5000.0,9.899e-05,2]
[348715279,1736747196878,-150.0,9.899e-05,2]
[348715280,1736747196899,-297.2003,9.9e-05,2]
[348715281,1736747196921,-1354.04,9.9e-05,2]
[348715282,1736747196944,-772.26,9.9e-05,2]
[348715283,1736747196965,-715.18,9.9e-05,2]
[348715284,1736747196988,-299.99,9.9e-05,2]
[348715285,1736747197008,-7713.94,9.9e-05,2]
[348715286,1736747197028,-999.99,9.9e-05,2]
[348715287,1736747197049,-9395.74,9.9e-05,2]
[348715288,1736747197071,-150.99,9.9e-05,2]
[348715289,1736747197093,-200.0,9.976e-05,2]
[348715290,1736747197115,-200.0,9.991e-05,2]
[348715291,1736747197136,-807.38,9.998e-05,2]
[348715292,1736747197156,-633.92,9.998e-05,2]
[348715293,1736747197178,-3778.287,9.998e-05,2]
[348715294,1736747197200,-220.819,9.998e-05,2]
[348715295,1736747197223,-758.32,9.998e-05,2]
[348715296,1736747197246,-500.0,9.998e-05,2]
[348715297,1736747197267,-599.73,9.998e-05,2]
[348715298,1736747197291,-500.0,9.998e-05,2]
[348715299,1736747197313,-866.94,9.998e-05,2]
[348715300,1736747197338,-817.05,9.998e-05,2]
[348715301,1736747197590,-500.0,9.998e-05,2]
[348715302,1736747197613,-500.0,9.998e-05,2]
[348715303,1736747197637,-519.54,9.998e-05,2]
[348715304,1736747197659,-500.0,9.998e-05,2]
[348715305,1736747197682,-500.0,9.998e-05,2]
[348715306,1736747197704,-500.0,9.998e-05,2]
[348715307,1736747197728,-682.82,9.998e-05,2]
[348715308,1736747197751,-585.5,9.998e-05,2]
[348715309,1736747197774,-500.0,9.998e-05,2]
[348715310,1736747197796,-500.0,9.998e-05,2]
[348715311,1736747197819,-500.0,9.998e-05,2]
[348715312,1736747197843,-500.0,9.998e-05,2]
[348715313,1736747197866,-500.0,9.998e-05,2]
[348715314,1736747197888,-500.0,9.998e-05,2]
[348715315,1736747197911,-765.98,9.998e-05,2]
[348715316,1736747197935,-587.31,9.998e-05,2]
[348715317,1736747197956,-500.0,9.998e-05,2]
[348715318,1736747197977,-500.0,9.998e-05,2]
[348715319,1736747198001,-500.0,9.998e-05,2]
[348715320,1736747198023,-500.0,9.998e-05,2]
[348715321,1736747198047,-500.0,9.998e-05,2]
[348715322,1736747198070,-533.27,9.998e-05,2]
[348715323,1736747198093,-500.0,9.998e-05,2]
[348715324,1736747198116,-500.0,9.998e-05,2]
[348715325,1736747198138,-500.0,9.998e-05,2]
[348715326,1736747198160,-251.29008618,9.998e-05,2]
[348715327,1736747198185,-500.0,9.998e-05,2]
[348715328,1736747198207,-500.0,9.998e-05,2]
[348715329,1736747198228,-500.0,9.998e-05,2]
[348715330,1736747198250,-903.86,9.998e-05,2]
[348715331,1736747198273,-980.02,9.998e-05,2]
[348715332,1736747198295,-500.0,9.998e-05,2]
[348715333,1736747198317,-447.49394021,9.998e-05,2]
[348715334,1736747198338,-532.3741034,9.998e-05,2]
[348715335,1736747198361,-500.0,9.998e-05,2]
[348715336,1736747198383,-500.0,9.998e-05,2]
[348715337,1736747198404,-1481.36,9.998e-05,2]
[348715338,1736747198426,-555.0065127,9.998e-05,2]
[348715339,1736747198450,-513.82,9.998e-05,2]
[348715340,1736747198473,-171.31737795,9.998e-05,2]
[348715341,1736747198494,-1096.82,9.998e-05,2]
[348715342,1736747198518,-3326.95,9.998e-05,2]
[348715343,1736747198540,-363.38079184,9.998e-05,2]
[348715344,1736747198562,-571.01882894,9.998e-05,2]
[348715345,1736747198585,-1713.73,9.998e-05,2]
[348715346,1736747198610,-500.0,9.998e-05,2]
[348715347,1736747198634,-500.0,9.998e-05,2]
[348715348,1736747198657,-500.0,9.998e-05,2]
[348715349,1736747198680,-500.0,9.998e-05,2]
[348715350,1736747198704,-500.0,9.998e-05,2]
[348715351,1736747198727,-500.0,9.998e-05,2]
[348715352,1736747198751,-504.25099126,9.998e-05,2]
[348715353,1736747198774,-500.0,9.998e-05,2]
[348715354,1736747198796,-500.0,9.998e-05,2]
[348715355,1736747198823,-500.0,9.998e-05,2]
[348715356,1736747198844,-500.0,9.998e-05,2]
[348715357,1736747198867,-517.16014108,9.998e-05,2]
[348715358,1736747198890,-1127.49,9.998e-05,2]
[348715359,1736747198916,-501.45747731,9.998e-05,2]
[348715360,1736747198940,-500.0,9.998e-05,2]
[348715361,1736747198961,-454.9626441,9.998e-05,2]
[348715362,1736747198982,-760.99,9.998e-05,2]
[348715363,1736747199004,-723.59,9.998e-05,2]
[348715364,1736747199025,-500.0,9.998e-05,2]
[348715365,1736747199046,-500.0,9.998e-05,2]
[348715366,1736747199067,-500.0,9.998e-05,2]
[348715367,1736747199088,-500.0,9.998e-05,2]
[348715368,1736747199109,-500.0,9.998e-05,2]
[348715369,1736747199130,-1335.84,9.998e-05,2]
[348715370,1736747199153,-500.0,9.998e-05,2]
[348715371,1736747199175,-500.0,9.998e-05,2]
[348715372,1736747199197,-591.66646245,9.998e-05,2]
[348715373,1736747199222,-500.0,9.998e-05,2]
[348715374,1736747199244,-502.19,9.998e-05,2]
[348715375,1736747199268,-1295.13,9.998e-05,2]
[348715376,1736747199290,-2098.79,9.998e-05,2]
[348715377,1736747199312,-500.0,9.998e-05,2]
[348715378,1736747199333,-500.0,9.998e-05,2]
[348715379,1736747199357,-500.0,9.998e-05,2]
[348715380,1736747199380,-500.0,9.998e-05,2]
[348715381,1736747199402,-500.0,9.998e-05,2]
[348715382,1736747199424,-500.0,9.998e-05,2]
[348715383,1736747199446,-269.915434,9.998e-05,2]
[348715384,1736747199469,-2146.12,9.998e-05,2]
[348715385,1736747199493,-500.0,9.998e-05,2]
[348715386,1736747199516,-500.0,9.998e-05,2]
[348715387,1736747199539,-400.0,9.998e-05,2]
[348715388,1736747199563,-156.790775,9.998e-05,2]
[348715389,1736747199585,-500.36982345,9.998e-05,2]
[348715390,1736747199609,-500.72669128,9.998e-05,2]
[348715391,1736747199634,-500.0,9.998e-05,2]
[348715392,1736747199660,-637.52,9.998e-05,2]
[348715393,1736747199683,-3120.37,9.998e-05,2]
[348715394,1736747199705,-156.735981,9.998e-05,2]
[348715395,1736747199730,-500.0,9.998e-05,2]
[348715396,1736747199753,-501.93106147,9.998e-05,2]
[348715397,1736747199777,-1672.59,9.998e-05,2]
[348715398,1736747199799,-500.0,9.998e-05,2]
[348715399,1736747199823,-501.52748592,9.998e-05,2]
[348715400,1736747199846,-502.94336652,9.998e-05,2]
[348715401,1736747199867,-503.47098524,9.998e-05,2]
[348715402,1736747199888,-500.0,9.998e-05,2]
[348715403,1736747199908,-503.84464641,9.998e-05,2]
[348715404,1736747199932,-500.0,9.998e-05,2]
[348715405,1736747199953,-500.69446571,9.998e-05,2]
[348715406,1736747199977,-500.0,9.998e-05,2]
[348715407,1736747200001,-1987.26,9.998e-05,2]
[348715408,1736747200022,-501.88202229,9.998e-05,2]
[348715409,1736747200044,-560.25,9.998e-05,2]
[348715410,1736747200068,-1133.62,9.998e-05,2]
[348715411,1736747200089,-498.95403899,9.998e-05,2]
[348715412,1736747200112,-500.0,9.998e-05,2]
[348715413,1736747200133,-503.83856465,9.998e-05,2]
[348715414,1736747200155,-255.692937,9.998e-05,2]
[348715415,1736747200176,-616.09889906,9.998e-05,2]
[348715416,1736747200198,-510.0116926,9.998e-05,2]
[348715417,1736747200220,-500.0,9.998e-05,2]
[348715418,1736747200242,-533.88,9.998e-05,2]
[348715419,1736747200263,-500.0,9.998e-05,2]
[348715420,1736747200285,-500.0,9.998e-05,2]
[348715421,1736747200307,-502.50609127,9.998e-05,2]
[348715422,1736747200328,-500.0,9.998e-05,2]
[348715423,1736747200349,-501.26458294,9.998e-05,2]
[348715424,1736747200371,-666.11,9.998e-05,2]
[348715425,1736747200393,-1200.29,9.998e-05,2]
[348715426,1736747200414,-500.81338233,9.998e-05,2]
[348715427,1736747200435,-500.0,9.998e-05,2]
[348715428,1736747200457,-500.0,9.998e-05,2]
[348715429,1736747200479,-501.06448324,9.998e-05,2]
[348715430,1736747200502,-1949.86,9.998e-05,2]
[348715431,1736747200523,-505.27504807,9.998e-05,2]
[348715432,1736747200544,-500.0,9.998e-05,2]
[348715433,1736747200564,-528.71185237,9.998e-05,2]
[348715434,1736747200586,-500.0,9.998e-05,2]
[348715435,1736747200606,-505.8534047,9.998e-05,2]
[348715436,1736747200627,-500.0,9.998e-05,2]
[348715437,1736747200649,-715.98,9.998e-05,2]
[348715438,1736747200671,-500.0,9.998e-05,2]
[348715439,1736747200694,-156.14882921,9.998e-05,2]
[348715440,1736747200716,-500.0,9.998e-05,2]
[348715441,1736747200736,-500.0,9.998e-05,2]
[348715442,1736747200758,-500.0,9.998e-05,2]
[348715443,1736747200779,-500.0,9.998e-05,2]
[348715444,1736747200800,-506.41142844,9.998e-05,2]
[348715445,1736747200824,-501.3326097,9.998e-05,2]
[348715446,1736747200845,-500.0,9.998e-05,2]
[348715447,1736747200866,-505.77647964,9.998e-05,2]
[348715448,1736747200889,-882.09,9.998e-05,2]
[348715449,1736747200913,-500.0,9.998e-05,2]
[348715450,1736747200935,-503.19875617,9.998e-05,2]
[348715451,1736747200958,-501.71426728,9.998e-05,2]
[348715452,1736747200981,-500.0,9.998e-05,2]
[348715453,1736747201004,-500.0,9.998e-05,2]
[348715454,1736747201025,-500.92596421,9.998e-05,2]
[348715455,1736747201047,-577.03364447,9.998e-05,2]
[348715456,1736747201068,-507.09776436,9.998e-05,2]
[348715457,1736747201091,-500.0,9.998e-05,2]
[348715458,1736747201113,-502.52562453,9.998e-05,2]
[348715459,1736747201134,-503.27718743,9.998e-05,2]
[348715460,1736747201155,-503.45182847,9.998e-05,2]
[348715461,1736747201178,-500.0,9.998e-05,2]
[348715462,1736747201200,-505.68554259,9.998e-05,2]
[348715463,1736747201222,-500.62564464,9.998e-05,2]
[348715464,1736747201245,-505.22364018,9.998e-05,2]
[348715465,1736747201267,-500.0,9.998e-05,2]
[348715466,1736747201289,-506.67926938,9.998e-05,2]
[348715467,1736747201312,-502.82478419,9.998e-05,2]
[348715468,1736747201334,-500.0,9.998e-05,2]
[348715469,1736747201356,-627.48,9.998e-05,2]
[348715470,1736747201378,-500.9390441,9.998e-05,2]
[348715471,1736747201400,-500.0,9.998e-05,2]
[348715472,1736747201421,-500.0,9.998e-05,2]
[348715473,1736747201444,-73.59331808,9.998e-05,2]
[348715474,1736747202434,-429.40687307,9.998e-05,2]
[348715475,1736747202457,-502.12341391,9.998e-05,2]
[348715476,1736747202479,-558.42365767,9.998e-05,2]
[348715477,1736747202500,-500.0,9.998e-05,2]
[348715478,1736747202523,-500.0,9.998e-05,2]
[348715479,1736747202545,-505.36669697,9.998e-05,2]
[348715480,1736747202568,-500.0,9.998e-05,2]
[348715481,1736747202589,-502.70452057,9.998e-05,2]
[348715482,1736747202611,-500.0,9.998e-05,2]
[348715483,1736747202632,-503.35680048,9.998e-05,2]
[348715484,1736747202654,-500.0,9.998e-05,2]
[348715485,1736747202677,-500.0,9.998e-05,2]
[348715486,1736747202699,-500.0,9.998e-05,2]
[348715487,1736747202723,-527.27758482,9.998e-05,2]
[348715488,1736747202746,-377.74946825,9.998e-05,2]